[Event "Titled Tuesday Blitz May 10 Late 2022"]
[White "Janaszak, Dawid"]
[Black "Butti, Enrique"]
[WhiteFideId "1119206"]
[BlackFideId "3700470"]
[WhiteElo "2199"]
[BlackElo "2080"]
[Result "1-0"]
[Round "02"]
[TimeControl "180+1"]
[Date "2022.05.11"]
[WhiteClock "0:01:42"]
[BlackClock "0:01:10"]

1. e4 {[%clk 0:03:00]}  c5 {[%clk 0:02:59]} 2. Nc3 {[%clk 0:03:00]}  Nc6 {[%clk 0:02:58]} 3. Bb5 {[%clk 0:03:00]}  Nd4 {[%clk 0:02:57]} 4. Nf3 {[%clk 0:03:00]}  Nxb5 {[%clk 0:02:56]} 5. Nxb5 {[%clk 0:03:00]}  d6 {[%clk 0:02:56]} 6. d4 {[%clk 0:03:00]}  cxd4 {[%clk 0:02:55]} 7. Qxd4 {[%clk 0:03:01]}  a6 {[%clk 0:02:50]} 8. Nc3 {[%clk 0:03:00]}  Bg4 {[%clk 0:02:42]} 9. Bg5 {[%clk 0:02:48]}  Bxf3 {[%clk 0:02:30]} 10. gxf3 {[%clk 0:02:49]}  Qd7 {[%clk 0:02:22]} 11. O-O-O {[%clk 0:02:40]}  e6 {[%clk 0:02:14]} 12. f4 {[%clk 0:02:35]}  Rc8 {[%clk 0:02:07]} 13. Kb1 {[%clk 0:02:34]}  b5 {[%clk 0:01:52]} 14. f5 {[%clk 0:02:30]}  Rc4 {[%clk 0:01:42]} 15. Qd3 {[%clk 0:02:25]}  Qc6 {[%clk 0:01:39]} 16. fxe6 {[%clk 0:02:22]}  fxe6 {[%clk 0:01:38]} 17. Rhe1 {[%clk 0:02:11]}  Rxc3 {[%clk 0:01:28]} 18. bxc3 {[%clk 0:02:08]}  Nf6 {[%clk 0:01:18]} 19. Qh3 {[%clk 0:01:51]}  Qd7 {[%clk 0:01:11]} 20. e5 {[%clk 0:01:48]}  Nd5 {[%clk 0:01:10]} 21. Rxd5 {[%clk 0:01:42]} 1-0


[Site "https://www.chess.com"]

[Event "Titled Tuesday Blitz May 10 Late 2022"]
[White "Jones, Gawain C B"]
[Black "Roberson, Peter T"]
[WhiteFideId "409561"]
[BlackFideId "412384"]
[WhiteElo "2657"]
[BlackElo "2346"]
[Result "1-0"]
[Round "02"]
[TimeControl "180+1"]
[Date "2022.05.10"]
[WhiteClock "0:00:05"]
[BlackClock "0:00:01"]

1. g3 {[%clk 0:03:00]}  e5 {[%clk 0:02:56]} 2. Bg2 {[%clk 0:02:59]}  Be7 {[%clk 0:02:56]} 3. d4 {[%clk 0:02:58]}  exd4 {[%clk 0:02:56]} 4. Qxd4 {[%clk 0:02:59]}  Nf6 {[%clk 0:02:56]} 5. c4 {[%clk 0:02:57]}  Nc6 {[%clk 0:02:56]} 6. Qd2 {[%clk 0:02:55]}  O-O {[%clk 0:02:57]} 7. Nc3 {[%clk 0:02:54]}  Ne5 {[%clk 0:02:54]} 8. b3 {[%clk 0:02:54]}  d6 {[%clk 0:02:54]} 9. Bb2 {[%clk 0:02:54]}  c6 {[%clk 0:02:54]} 10. Nf3 {[%clk 0:02:51]}  Bg4 {[%clk 0:02:52]} 11. O-O {[%clk 0:02:49]}  Nxf3+ {[%clk 0:02:52]} 12. exf3 {[%clk 0:02:49]}  Be6 {[%clk 0:02:51]} 13. Rad1 {[%clk 0:02:46]}  d5 {[%clk 0:02:50]} 14. cxd5 {[%clk 0:02:36]}  Nxd5 {[%clk 0:02:51]} 15. f4 {[%clk 0:02:36]}  Nf6 {[%clk 0:02:26]} 16. Qe2 {[%clk 0:02:26]}  Qc7 {[%clk 0:02:23]} 17. Rfe1 {[%clk 0:02:26]}  Rfe8 {[%clk 0:02:18]} 18. Ne4 {[%clk 0:02:21]}  Nxe4 {[%clk 0:02:17]} 19. Bxe4 {[%clk 0:02:21]}  Rad8 {[%clk 0:02:16]} 20. f5 {[%clk 0:02:10]}  Rxd1 {[%clk 0:02:09]} 21. Qxd1 {[%clk 0:02:08]}  Bc8 {[%clk 0:02:00]} 22. f6 {[%clk 0:02:01]}  Bxf6 {[%clk 0:01:31]} 23. Bxh7+ {[%clk 0:01:43]}  Kf8 {[%clk 0:01:24]} 24. Bxf6 {[%clk 0:01:19]}  gxf6 {[%clk 0:01:23]} 25. Rxe8+ {[%clk 0:01:01]}  Kxe8 {[%clk 0:01:24]} 26. Qd4 {[%clk 0:00:58]}  Qe5 {[%clk 0:00:52]} 27. Qxa7 {[%clk 0:00:54]}  f5 {[%clk 0:00:49]} 28. Qe3 {[%clk 0:00:50]}  Qxe3 {[%clk 0:00:46]} 29. fxe3 {[%clk 0:00:50]}  Kf8 {[%clk 0:00:47]} 30. e4 {[%clk 0:00:48]}  fxe4 {[%clk 0:00:40]} 31. Bxe4 {[%clk 0:00:49]}  c5 {[%clk 0:00:39]} 32. Kf2 {[%clk 0:00:44]}  b6 {[%clk 0:00:36]} 33. Ke3 {[%clk 0:00:43]}  Be6 {[%clk 0:00:33]} 34. Bd3 {[%clk 0:00:35]}  Kg7 {[%clk 0:00:30]} 35. Kf4 {[%clk 0:00:34]}  f6 {[%clk 0:00:24]} 36. h4 {[%clk 0:00:32]}  Bf7 {[%clk 0:00:20]} 37. g4 {[%clk 0:00:29]}  Be6 {[%clk 0:00:17]} 38. g5 {[%clk 0:00:17]}  Bf7 {[%clk 0:00:18]} 39. Bc4 {[%clk 0:00:13]}  Bh5 {[%clk 0:00:15]} 40. Kf5 {[%clk 0:00:12]}  Bg6+ {[%clk 0:00:13]} 41. Ke6 {[%clk 0:00:11]}  fxg5 {[%clk 0:00:07]} 42. hxg5 {[%clk 0:00:11]}  Bb1 {[%clk 0:00:08]} 43. a4 {[%clk 0:00:08]}  Kg6 {[%clk 0:00:04]} 44. Kd6 {[%clk 0:00:08]}  Kxg5 {[%clk 0:00:01]} 45. Kc6 {[%clk 0:00:08]}  Kf6 {[%clk 0:00:01]} 46. Kxb6 {[%clk 0:00:08]}  Ke7 {[%clk 0:00:02]} 47. a5 {[%clk 0:00:07]}  Kd8 {[%clk 0:00:02]} 48. Bd5 {[%clk 0:00:05]}  Kc8 {[%clk 0:00:01]} 49. a6 {[%clk 0:00:05]} 1-0


[Site "https://www.chess.com"]

[Event "Titled Tuesday Blitz May 10 Late 2022"]
[White "Joubert, Dantelle"]
[Black "Perez Molina, Robinson"]
[WhiteFideId "14310813"]
[BlackFideId "3403882"]
[WhiteElo "1507"]
[BlackElo "2252"]
[Result "1-0"]
[Round "02"]
[TimeControl "180+1"]
[Date "2022.05.11"]
[WhiteClock "0:00:27"]
[BlackClock "0:00:01"]

1. Nf3 {[%clk 0:03:00]}  Nf6 {[%clk 0:02:59]} 2. c4 {[%clk 0:03:00]}  b6 {[%clk 0:02:57]} 3. g3 {[%clk 0:03:00]}  Bb7 {[%clk 0:02:57]} 4. Bg2 {[%clk 0:03:00]}  e6 {[%clk 0:02:57]} 5. O-O {[%clk 0:03:00]}  Be7 {[%clk 0:02:56]} 6. d4 {[%clk 0:03:00]}  O-O {[%clk 0:02:56]} 7. Nc3 {[%clk 0:02:57]}  Ne4 {[%clk 0:02:55]} 8. Nxe4 {[%clk 0:02:55]}  Bxe4 {[%clk 0:02:56]} 9. b3 {[%clk 0:02:56]}  f5 {[%clk 0:02:56]} 10. Bb2 {[%clk 0:02:52]}  Bf6 {[%clk 0:02:56]} 11. Ne1 {[%clk 0:02:46]}  Bxg2 {[%clk 0:02:54]} 12. Nxg2 {[%clk 0:02:46]}  Nc6 {[%clk 0:02:54]} 13. Qd2 {[%clk 0:02:43]}  d6 {[%clk 0:02:50]} 14. d5 {[%clk 0:02:40]}  Bxb2 {[%clk 0:02:21]} 15. Qxb2 {[%clk 0:02:39]}  Ne5 {[%clk 0:02:06]} 16. dxe6 {[%clk 0:02:36]}  Qe7 {[%clk 0:01:58]} 17. Nf4 {[%clk 0:02:35]}  c6 {[%clk 0:01:56]} 18. h4 {[%clk 0:02:32]}  Rf6 {[%clk 0:01:46]} 19. Rad1 {[%clk 0:02:22]}  Ng6 {[%clk 0:01:40]} 20. Qd4 {[%clk 0:01:43]}  Nxf4 {[%clk 0:01:29]} 21. Qxf4 {[%clk 0:01:43]}  Rxe6 {[%clk 0:01:28]} 22. e3 {[%clk 0:01:38]}  Rf8 {[%clk 0:01:25]} 23. Rd2 {[%clk 0:01:32]}  Rff6 {[%clk 0:01:23]} 24. Rfd1 {[%clk 0:01:32]}  Re4 {[%clk 0:01:22]} 25. Qf3 {[%clk 0:01:30]}  g6 {[%clk 0:01:17]} 26. Rd4 {[%clk 0:01:29]}  h6 {[%clk 0:01:13]} 27. R1d2 {[%clk 0:01:21]}  g5 {[%clk 0:01:05]} 28. h5 {[%clk 0:01:17]}  Kg7 {[%clk 0:00:59]} 29. Qd1 {[%clk 0:01:15]}  Rxd4 {[%clk 0:00:55]} 30. Rxd4 {[%clk 0:01:14]}  a5 {[%clk 0:00:52]} 31. a3 {[%clk 0:01:08]}  Qe5 {[%clk 0:00:41]} 32. b4 {[%clk 0:01:05]}  axb4 {[%clk 0:00:40]} 33. axb4 {[%clk 0:01:05]}  Qe7 {[%clk 0:00:25]} 34. Qa4 {[%clk 0:01:02]}  c5 {[%clk 0:00:16]} 35. bxc5 {[%clk 0:00:59]}  bxc5 {[%clk 0:00:15]} 36. Rd2 {[%clk 0:00:58]}  Qf7 {[%clk 0:00:14]} 37. Qd1 {[%clk 0:00:55]}  f4 {[%clk 0:00:13]} 38. Rxd6 {[%clk 0:00:49]}  fxg3 {[%clk 0:00:09]} 39. fxg3 {[%clk 0:00:47]}  Rxd6 {[%clk 0:00:08]} 40. Qxd6 {[%clk 0:00:47]}  Qxh5 {[%clk 0:00:08]} 41. Qe5+ {[%clk 0:00:38]}  Kh7 {[%clk 0:00:05]} 42. Qf5+ {[%clk 0:00:36]}  Kg7 {[%clk 0:00:02]} 43. Qe5+ {[%clk 0:00:36]}  Kh7 {[%clk 0:00:02]} 44. Qe7+ {[%clk 0:00:35]}  Kh8 {[%clk 0:00:01]} 45. Qf8+ {[%clk 0:00:33]}  Kh7 {[%clk 0:00:01]} 46. Qxc5 {[%clk 0:00:33]}  Qd1+ {[%clk 0:00:01]} 47. Kg2 {[%clk 0:00:32]}  Qe2+ {[%clk 0:00:01]} 48. Kg1 {[%clk 0:00:28]}  Qd1+ {[%clk 0:00:01]} 49. Kf2 {[%clk 0:00:27]} 1-0


[Site "https://www.chess.com"]

[Event "Titled Tuesday Blitz May 10 Late 2022"]
[White "Karas, Marek"]
[Black "Jarovinsky, Alexey"]
[WhiteFideId "14928558"]
[BlackFideId "14115131"]
[WhiteElo "2271"]
[BlackElo "2446"]
[Result "0-1"]
[Round "02"]
[TimeControl "180+1"]
[Date "2022.05.11"]
[WhiteClock "0:00:03"]
[BlackClock "0:00:09"]

1. d4 {[%clk 0:03:00]}  Nc6 {[%clk 0:02:38]} 2. Nf3 {[%clk 0:03:00]}  d6 {[%clk 0:02:38]} 3. e4 {[%clk 0:02:57]}  Nf6 {[%clk 0:02:36]} 4. Nc3 {[%clk 0:02:57]}  Bg4 {[%clk 0:02:35]} 5. Bb5 {[%clk 0:02:56]}  a6 {[%clk 0:02:35]} 6. Bxc6+ {[%clk 0:02:56]}  bxc6 {[%clk 0:02:36]} 7. h3 {[%clk 0:02:56]}  Bd7 {[%clk 0:02:33]} 8. Be3 {[%clk 0:02:55]}  e6 {[%clk 0:02:33]} 9. O-O {[%clk 0:02:55]}  Be7 {[%clk 0:02:33]} 10. Re1 {[%clk 0:02:52]}  O-O {[%clk 0:02:32]} 11. Qd3 {[%clk 0:02:44]}  Re8 {[%clk 0:02:32]} 12. Rad1 {[%clk 0:02:33]}  a5 {[%clk 0:02:32]} 13. Ne2 {[%clk 0:02:31]}  a4 {[%clk 0:02:30]} 14. a3 {[%clk 0:02:31]}  Qb8 {[%clk 0:02:28]} 15. Rb1 {[%clk 0:02:29]}  d5 {[%clk 0:02:26]} 16. Ng3 {[%clk 0:02:24]}  Qb5 {[%clk 0:02:22]} 17. Qxb5 {[%clk 0:02:12]}  cxb5 {[%clk 0:02:23]} 18. e5 {[%clk 0:02:11]}  Ne4 {[%clk 0:02:22]} 19. Nxe4 {[%clk 0:02:09]}  dxe4 {[%clk 0:02:23]} 20. Nd2 {[%clk 0:02:08]}  Bc6 {[%clk 0:02:22]} 21. c3 {[%clk 0:02:07]}  f5 {[%clk 0:02:21]} 22. exf6 {[%clk 0:02:06]}  gxf6 {[%clk 0:02:22]} 23. Bf4 {[%clk 0:02:04]}  f5 {[%clk 0:02:22]} 24. Bxc7 {[%clk 0:02:03]}  Kf7 {[%clk 0:02:22]} 25. g3 {[%clk 0:01:58]}  Bg5 {[%clk 0:02:21]} 26. Nf1 {[%clk 0:01:55]}  Rg8 {[%clk 0:02:19]} 27. h4 {[%clk 0:01:54]}  Bxh4 {[%clk 0:02:18]} 28. Ne3 {[%clk 0:01:50]}  Bg5 {[%clk 0:02:17]} 29. Kf1 {[%clk 0:01:49]}  Rac8 {[%clk 0:02:12]} 30. Be5 {[%clk 0:01:48]}  Bd5 {[%clk 0:02:04]} 31. Ke2 {[%clk 0:01:45]}  Kg6 {[%clk 0:01:55]} 32. Rh1 {[%clk 0:01:44]}  h6 {[%clk 0:01:45]} 33. Rbg1 {[%clk 0:01:42]}  Kf7 {[%clk 0:01:36]} 34. Rh2 {[%clk 0:01:41]}  Rg6 {[%clk 0:01:35]} 35. Ng2 {[%clk 0:01:39]}  Bc4+ {[%clk 0:01:29]} 36. Ke1 {[%clk 0:01:39]}  Ke7 {[%clk 0:01:29]} 37. Nf4 {[%clk 0:01:38]}  Rgg8 {[%clk 0:01:29]} 38. Rgh1 {[%clk 0:01:33]}  Kd7 {[%clk 0:01:27]} 39. Rxh6 {[%clk 0:01:30]}  Bxh6 {[%clk 0:01:26]} 40. Rxh6 {[%clk 0:01:31]}  Rge8 {[%clk 0:01:25]} 41. Kd2 {[%clk 0:01:29]}  Re7 {[%clk 0:01:24]} 42. Ke3 {[%clk 0:01:28]}  Kc6 {[%clk 0:01:24]} 43. Bf6 {[%clk 0:01:23]}  Rd7 {[%clk 0:01:23]} 44. Ng6 {[%clk 0:01:22]}  Kb6 {[%clk 0:01:21]} 45. Ne5 {[%clk 0:01:18]}  Rdc7 {[%clk 0:01:20]} 46. Bg5 {[%clk 0:01:12]}  Bd5 {[%clk 0:01:17]} 47. Bf6 {[%clk 0:01:07]}  Kb7 {[%clk 0:01:15]} 48. Ng6 {[%clk 0:00:58]}  Ka8 {[%clk 0:01:14]} 49. Be5 {[%clk 0:00:56]}  Rd7 {[%clk 0:01:13]} 50. Nf4 {[%clk 0:00:56]}  Re8 {[%clk 0:01:09]} 51. Rg6 {[%clk 0:00:47]}  Kb7 {[%clk 0:01:09]} 52. Rh6 {[%clk 0:00:47]}  Bc4 {[%clk 0:01:08]} 53. Ng6 {[%clk 0:00:44]}  Rf7 {[%clk 0:01:05]} 54. Nf4 {[%clk 0:00:44]}  Ree7 {[%clk 0:01:03]} 55. Rh8 {[%clk 0:00:42]}  Rh7 {[%clk 0:01:02]} 56. Rb8+ {[%clk 0:00:41]}  Ka7 {[%clk 0:01:02]} 57. Rc8 {[%clk 0:00:20]}  Kb7 {[%clk 0:00:59]} 58. Rb8+ {[%clk 0:00:19]}  Ka7 {[%clk 0:00:59]} 59. Rc8 {[%clk 0:00:19]}  Rh1 {[%clk 0:00:58]} 60. Bd6 {[%clk 0:00:19]}  Rd7 {[%clk 0:00:57]} 61. Bc5+ {[%clk 0:00:19]}  Kb7 {[%clk 0:00:57]} 62. Re8 {[%clk 0:00:19]}  Re1+ {[%clk 0:00:54]} 63. Kd2 {[%clk 0:00:18]}  Rb1 {[%clk 0:00:55]} 64. Nxe6 {[%clk 0:00:17]}  Rxb2+ {[%clk 0:00:52]} 65. Ke3 {[%clk 0:00:17]}  Re2+ {[%clk 0:00:50]} 66. Kf4 {[%clk 0:00:17]}  Rxf2+ {[%clk 0:00:51]} 67. Ke5 {[%clk 0:00:18]}  Rf3 {[%clk 0:00:42]} 68. Nd8+ {[%clk 0:00:15]}  Kc7 {[%clk 0:00:37]} 69. Ne6+ {[%clk 0:00:15]}  Bxe6 {[%clk 0:00:36]} 70. Rxe6 {[%clk 0:00:14]}  Rxc3 {[%clk 0:00:34]} 71. Bb4 {[%clk 0:00:13]}  Rxg3 {[%clk 0:00:28]} 72. d5 {[%clk 0:00:11]}  Rd3 {[%clk 0:00:24]} 73. d6+ {[%clk 0:00:10]}  Kc6 {[%clk 0:00:23]} 74. Kxf5 {[%clk 0:00:10]}  e3 {[%clk 0:00:18]} 75. Ke4 {[%clk 0:00:07]}  Rb3 {[%clk 0:00:17]} 76. Kf4 {[%clk 0:00:06]}  Kd5 {[%clk 0:00:15]} 77. Re5+ {[%clk 0:00:05]}  Kc6 {[%clk 0:00:12]} 78. Rxe3 {[%clk 0:00:05]}  Rxb4+ {[%clk 0:00:10]} 79. axb4 {[%clk 0:00:04]}  Rxd6 {[%clk 0:00:10]} 80. Rc3+ {[%clk 0:00:04]}  Kb6 {[%clk 0:00:08]} 81. Ke4 {[%clk 0:00:04]}  Rc6 {[%clk 0:00:08]} 82. Rh3 {[%clk 0:00:03]}  Rc4+ {[%clk 0:00:09]} 83. Kd5 {[%clk 0:00:03]}  Rxb4 {[%clk 0:00:09]} 84. Rh6+ {[%clk 0:00:03]}  Ka5 {[%clk 0:00:09]} 85. Rh8 {[%clk 0:00:03]}  Rc4 {[%clk 0:00:09]} 86. Ra8+ {[%clk 0:00:02]}  Kb4 {[%clk 0:00:10]} 87. Ra7 {[%clk 0:00:02]}  Rc1 {[%clk 0:00:09]} 88. Ra8 {[%clk 0:00:03]}  Rd1+ {[%clk 0:00:09]} 0-1


[Site "https://www.chess.com"]

[Event "Titled Tuesday Blitz May 10 Late 2022"]
[White "Karttunen, Mika"]
[Black "Ansh M Shah"]
[WhiteFideId "502081"]
[BlackFideId "25033379"]
[WhiteElo "2343"]
[BlackElo "1819"]
[Result "1-0"]
[Round "02"]
[TimeControl "180+1"]
[Date "2022.05.11"]
[WhiteClock "0:01:22"]
[BlackClock "0:01:17"]

1. e4 {[%clk 0:03:00]}  c6 {[%clk 0:02:57]} 2. d4 {[%clk 0:03:00]}  d5 {[%clk 0:02:58]} 3. e5 {[%clk 0:03:00]}  Bf5 {[%clk 0:02:58]} 4. h4 {[%clk 0:03:00]}  h5 {[%clk 0:02:58]} 5. Bd3 {[%clk 0:03:00]}  Bxd3 {[%clk 0:02:58]} 6. Qxd3 {[%clk 0:03:01]}  e6 {[%clk 0:02:59]} 7. Bg5 {[%clk 0:03:01]}  Qa5+ {[%clk 0:02:58]} 8. Nd2 {[%clk 0:03:00]}  Qa6 {[%clk 0:02:59]} 9. c4 {[%clk 0:03:00]}  Nd7 {[%clk 0:02:58]} 10. b3 {[%clk 0:02:58]}  Ne7 {[%clk 0:02:58]} 11. Ne2 {[%clk 0:02:57]}  Nf5 {[%clk 0:02:58]} 12. O-O {[%clk 0:02:56]}  Be7 {[%clk 0:02:57]} 13. Bxe7 {[%clk 0:02:49]}  Kxe7 {[%clk 0:02:55]} 14. Nf3 {[%clk 0:02:46]}  f6 {[%clk 0:02:49]} 15. Nf4 {[%clk 0:02:38]}  Kf7 {[%clk 0:02:47]} 16. exf6 {[%clk 0:02:37]}  gxf6 {[%clk 0:02:48]} 17. Nxe6 {[%clk 0:02:37]}  Nd6 {[%clk 0:02:27]} 18. Nc7 {[%clk 0:02:33]}  dxc4 {[%clk 0:02:27]} 19. bxc4 {[%clk 0:02:32]}  Qxc4 {[%clk 0:02:28]} 20. Qxc4+ {[%clk 0:02:30]}  Nxc4 {[%clk 0:02:29]} 21. Nxa8 {[%clk 0:02:30]}  Rxa8 {[%clk 0:02:28]} 22. Rfe1 {[%clk 0:02:27]}  Ndb6 {[%clk 0:02:21]} 23. Rac1 {[%clk 0:02:19]}  Nd6 {[%clk 0:02:15]} 24. Nd2 {[%clk 0:02:13]}  Nd5 {[%clk 0:02:13]} 25. Ne4 {[%clk 0:02:11]}  Nf5 {[%clk 0:02:14]} 26. Nc5 {[%clk 0:02:09]}  Rb8 {[%clk 0:02:07]} 27. Re4 {[%clk 0:02:09]}  Nd6 {[%clk 0:02:02]} 28. Ree1 {[%clk 0:02:03]}  Nf5 {[%clk 0:02:02]} 29. g3 {[%clk 0:01:57]}  Nxd4 {[%clk 0:02:02]} 30. Kg2 {[%clk 0:01:57]}  Nf5 {[%clk 0:01:53]} 31. Rb1 {[%clk 0:01:55]}  Nd6 {[%clk 0:01:54]} 32. Rec1 {[%clk 0:01:54]}  Nb5 {[%clk 0:01:34]} 33. a4 {[%clk 0:01:51]}  Nbc3 {[%clk 0:01:33]} 34. Rxb7+ {[%clk 0:01:49]}  Rxb7 {[%clk 0:01:33]} 35. Nxb7 {[%clk 0:01:50]}  Nxa4 {[%clk 0:01:32]} 36. Rxc6 {[%clk 0:01:50]}  Nab6 {[%clk 0:01:32]} 37. Nc5 {[%clk 0:01:48]}  a5 {[%clk 0:01:31]} 38. Rd6 {[%clk 0:01:35]}  Ke7 {[%clk 0:01:27]} 39. Re6+ {[%clk 0:01:35]}  Kf7 {[%clk 0:01:28]} 40. Re4 {[%clk 0:01:30]}  Nc3 {[%clk 0:01:20]} 41. Rd4 {[%clk 0:01:26]}  Nb5 {[%clk 0:01:19]} 42. Rd1 {[%clk 0:01:25]}  Nc3 {[%clk 0:01:18]} 43. Rd3 {[%clk 0:01:22]}  Nb5 {[%clk 0:01:17]} 44. Rb3 {[%clk 0:01:22]} 1-0


[Site "https://www.chess.com"]

[Event "Titled Tuesday Blitz May 10 Late 2022"]
[White "Keymer, Vincent"]
[Black "Lewtak, Damian"]
[WhiteFideId "12940690"]
[BlackFideId "1141724"]
[WhiteElo "2548"]
[BlackElo "2362"]
[Result "0-1"]
[Round "02"]
[TimeControl "180+1"]
[Date "2022.05.10"]
[WhiteClock "0:00:25"]
[BlackClock "0:00:16"]

1. Nf3 {[%clk 0:03:00]}  a6 {[%clk 0:02:58]} 2. c4 {[%clk 0:02:58]}  b5 {[%clk 0:02:58]} 3. e4 {[%clk 0:02:52]}  bxc4 {[%clk 0:02:50]} 4. Bxc4 {[%clk 0:02:52]}  e6 {[%clk 0:02:51]} 5. Nc3 {[%clk 0:02:49]}  g6 {[%clk 0:02:49]} 6. d4 {[%clk 0:02:43]}  Bg7 {[%clk 0:02:48]} 7. O-O {[%clk 0:02:43]}  Ne7 {[%clk 0:02:48]} 8. e5 {[%clk 0:02:38]}  O-O {[%clk 0:02:45]} 9. Bg5 {[%clk 0:02:33]}  h6 {[%clk 0:02:45]} 10. Bh4 {[%clk 0:02:33]}  g5 {[%clk 0:02:45]} 11. Bg3 {[%clk 0:02:32]}  Nf5 {[%clk 0:02:45]} 12. Bd3 {[%clk 0:02:30]}  Bb7 {[%clk 0:02:43]} 13. Re1 {[%clk 0:02:19]}  Nc6 {[%clk 0:02:40]} 14. d5 {[%clk 0:02:11]}  Nce7 {[%clk 0:02:38]} 15. Be4 {[%clk 0:02:08]}  Nxg3 {[%clk 0:02:34]} 16. hxg3 {[%clk 0:02:07]}  exd5 {[%clk 0:02:23]} 17. Nxd5 {[%clk 0:02:08]}  Nxd5 {[%clk 0:02:23]} 18. Bxd5 {[%clk 0:02:09]}  Bxd5 {[%clk 0:02:24]} 19. Qxd5 {[%clk 0:02:10]}  Rb8 {[%clk 0:02:24]} 20. Qd2 {[%clk 0:01:47]}  d6 {[%clk 0:02:18]} 21. Rad1 {[%clk 0:01:20]}  dxe5 {[%clk 0:02:10]} 22. Qe2 {[%clk 0:01:10]}  Qe7 {[%clk 0:02:01]} 23. b3 {[%clk 0:01:08]}  Rb6 {[%clk 0:01:50]} 24. Qc4 {[%clk 0:00:52]}  Rd6 {[%clk 0:01:41]} 25. Rc1 {[%clk 0:00:43]}  Rc8 {[%clk 0:01:32]} 26. Rc2 {[%clk 0:00:40]}  Re6 {[%clk 0:01:20]} 27. Rce2 {[%clk 0:00:34]}  Re8 {[%clk 0:01:10]} 28. g4 {[%clk 0:00:32]}  Qd7 {[%clk 0:00:58]} 29. Re4 {[%clk 0:00:29]}  Kh8 {[%clk 0:00:39]} 30. Qe2 {[%clk 0:00:23]}  Rd6 {[%clk 0:00:28]} 31. Rc1 {[%clk 0:00:20]}  f6 {[%clk 0:00:21]} 32. Rc2 {[%clk 0:00:18]}  Rd8 {[%clk 0:00:21]} 33. g3 {[%clk 0:00:17]}  Rd1+ {[%clk 0:00:21]} 34. Kg2 {[%clk 0:00:18]}  Bf8 {[%clk 0:00:20]} 35. Rec4 {[%clk 0:00:17]}  c5 {[%clk 0:00:18]} 36. Ra4 {[%clk 0:00:14]}  Rd3 {[%clk 0:00:12]} 37. Rxa6 {[%clk 0:00:11]}  Qb7 {[%clk 0:00:13]} 38. Ra4 {[%clk 0:00:11]}  Rd1 {[%clk 0:00:06]} 39. Re4 {[%clk 0:00:07]}  Ra1 {[%clk 0:00:06]} 40. Rd2 {[%clk 0:00:06]}  Rxd2 {[%clk 0:00:05]} 41. Nxd2 {[%clk 0:00:07]}  Rxa2 {[%clk 0:00:05]} 42. f3 {[%clk 0:00:06]}  c4 {[%clk 0:00:06]} 43. Rxc4 {[%clk 0:00:05]}  Bb4 {[%clk 0:00:06]} 44. Kh3 {[%clk 0:00:03]}  Rxd2 {[%clk 0:00:07]} 45. Qe3 {[%clk 0:00:03]}  Rd8 {[%clk 0:00:06]} 46. Rc2 {[%clk 0:00:02]}  Be7 {[%clk 0:00:06]} 47. Re2 {[%clk 0:00:01]}  Qd5 {[%clk 0:00:06]} 48. Rf2 {[%clk 0:00:02]}  Qd4 {[%clk 0:00:07]} 49. Qe2 {[%clk 0:00:02]}  Bc5 {[%clk 0:00:07]} 50. Rg2 {[%clk 0:00:02]}  Qd3 {[%clk 0:00:07]} 51. Qe1 {[%clk 0:00:01]}  Kg7 {[%clk 0:00:05]} 52. Qa5 {[%clk 0:00:01]}  Be7 {[%clk 0:00:05]} 53. Qc7 {[%clk 0:00:02]}  Qd7 {[%clk 0:00:05]} 54. Qc4 {[%clk 0:00:02]}  Qd6 {[%clk 0:00:06]} 55. Qc2 {[%clk 0:00:02]}  Rd7 {[%clk 0:00:06]} 56. Qe2 {[%clk 0:00:03]}  Qd3 {[%clk 0:00:06]} 57. Qe1 {[%clk 0:00:03]}  Qxb3 {[%clk 0:00:06]} 58. Qe2 {[%clk 0:00:03]}  Qd3 {[%clk 0:00:07]} 59. Qf2 {[%clk 0:00:04]}  Qd4 {[%clk 0:00:07]} 60. Qf1 {[%clk 0:00:04]}  Bc5 {[%clk 0:00:08]} 61. Re2 {[%clk 0:00:05]}  Qd3 {[%clk 0:00:08]} 62. Qg2 {[%clk 0:00:05]}  Rd4 {[%clk 0:00:09]} 63. Rf2 {[%clk 0:00:05]}  Rd5 {[%clk 0:00:08]} 64. Rc2 {[%clk 0:00:06]}  Be7 {[%clk 0:00:08]} 65. Rc7 {[%clk 0:00:06]}  Rd7 {[%clk 0:00:09]} 66. Rc2 {[%clk 0:00:06]}  Qd1 {[%clk 0:00:09]} 67. Re2 {[%clk 0:00:06]}  Qc1 {[%clk 0:00:09]} 68. Qf2 {[%clk 0:00:06]}  Qh1+ {[%clk 0:00:08]} 69. Qh2 {[%clk 0:00:05]}  Qxh2+ {[%clk 0:00:09]} 70. Kxh2 {[%clk 0:00:06]}  Kf7 {[%clk 0:00:09]} 71. Kg2 {[%clk 0:00:07]}  Ke6 {[%clk 0:00:09]} 72. Rc2 {[%clk 0:00:08]}  Bd6 {[%clk 0:00:08]} 73. Kf2 {[%clk 0:00:09]}  Rc7 {[%clk 0:00:09]} 74. Ra2 {[%clk 0:00:09]}  Rc3 {[%clk 0:00:08]} 75. Ke2 {[%clk 0:00:09]}  Bc5 {[%clk 0:00:08]} 76. Ra6+ {[%clk 0:00:10]}  Bd6 {[%clk 0:00:08]} 77. Ra8 {[%clk 0:00:10]}  Rc2+ {[%clk 0:00:08]} 78. Kd3 {[%clk 0:00:09]}  Rg2 {[%clk 0:00:08]} 79. Rh8 {[%clk 0:00:09]}  Rxg3 {[%clk 0:00:09]} 80. Ke4 {[%clk 0:00:10]}  Rh3 {[%clk 0:00:09]} 81. Re8+ {[%clk 0:00:10]}  Be7 {[%clk 0:00:10]} 82. Ra8 {[%clk 0:00:10]}  Rh1 {[%clk 0:00:10]} 83. Rh8 {[%clk 0:00:10]}  Re1+ {[%clk 0:00:10]} 84. Kd3 {[%clk 0:00:11]}  Bc5 {[%clk 0:00:10]} 85. Kc4 {[%clk 0:00:10]}  Bd4 {[%clk 0:00:10]} 86. Re8+ {[%clk 0:00:10]}  Kf7 {[%clk 0:00:10]} 87. Ra8 {[%clk 0:00:10]}  Re3 {[%clk 0:00:10]} 88. Kd5 {[%clk 0:00:10]}  Rxf3 {[%clk 0:00:09]} 89. Rb8 {[%clk 0:00:11]}  Re3 {[%clk 0:00:09]} 90. Rb7+ {[%clk 0:00:12]}  Kg6 {[%clk 0:00:09]} 91. Ke6 {[%clk 0:00:13]}  Ra3 {[%clk 0:00:09]} 92. Rb8 {[%clk 0:00:12]}  Ra6+ {[%clk 0:00:09]} 93. Ke7 {[%clk 0:00:12]}  Bc5+ {[%clk 0:00:10]} 94. Kd7 {[%clk 0:00:12]}  Ra7+ {[%clk 0:00:10]} 95. Ke6 {[%clk 0:00:12]}  Re7+ {[%clk 0:00:10]} 96. Kd5 {[%clk 0:00:13]}  e4 {[%clk 0:00:10]} 97. Kxc5 {[%clk 0:00:12]}  e3 {[%clk 0:00:10]} 98. Rb1 {[%clk 0:00:13]}  e2 {[%clk 0:00:10]} 99. Re1 {[%clk 0:00:14]}  f5 {[%clk 0:00:11]} 100. gxf5+ {[%clk 0:00:14]}  Kxf5 {[%clk 0:00:12]} 101. Kd6 {[%clk 0:00:15]}  Re8 {[%clk 0:00:12]} 102. Kd7 {[%clk 0:00:15]}  Re3 {[%clk 0:00:12]} 103. Kd6 {[%clk 0:00:16]}  Kf4 {[%clk 0:00:12]} 104. Kd5 {[%clk 0:00:16]}  Kf3 {[%clk 0:00:13]} 105. Kd4 {[%clk 0:00:17]}  Kf2 {[%clk 0:00:12]} 106. Rxe2+ {[%clk 0:00:18]}  Rxe2 {[%clk 0:00:13]} 107. Kd5 {[%clk 0:00:19]}  Re3 {[%clk 0:00:13]} 108. Kc5 {[%clk 0:00:20]}  g4 {[%clk 0:00:14]} 109. Kc6 {[%clk 0:00:21]}  g3 {[%clk 0:00:15]} 110. Kb6 {[%clk 0:00:22]}  g2 {[%clk 0:00:16]} 111. Kb7 {[%clk 0:00:23]}  g1=Q {[%clk 0:00:16]} 112. Ka7 {[%clk 0:00:24]}  Qb1 {[%clk 0:00:16]} 113. Ka8 {[%clk 0:00:25]}  Ra3# {[%clk 0:00:16]} 0-1


[Site "https://www.chess.com"]